[Event "EYCC O18-ch 2024"]
[Site "Prague"]
[Date "2024.08.22"]
[Round "1.12"]
[White "Kuti, Oliver"]
[Black "Hrbek, Stepan"]
[Result "0-1"]
[ECO "B30"]
[WhiteElo "2114"]
[BlackElo "2414"]
[Annotator "RC"]
[PlyCount "82"]
[EventDate "2024.08.19"]
[EventType "swiss"]
[EventCountry "CZE"]
[SourceTitle "playchess.com"]
[Source "ChessBase"]
[SourceQuality "1"]
[TimeControl "5400+30"]

1. e4 {[%emt 0:00:03]} c5 {[%emt 0:00:15]} 2. Nf3 {[%emt 0:00:18]} Nc6 {[%emt 0:00:19]} 3. c3 {[%emt 0:00:42]} Nf6 {[%emt 0:00:24]} 4. e5 {[%emt 0:00:09]} Nd5 {[%emt 0:00:22]} 5. d4 {[%emt 0:00:07]} cxd4 {[%emt 0:00:20]} 6. cxd4 {[%emt 0:00:04]} d6 {[%emt 0:00:21]} 7. Bc4 {[%emt 0:00:13]} Nb6 {[%emt 0:00:25]} 8. Bb5 {[%emt 0:00:38]} dxe5 {[%emt 0:00:28]} 9. Nxe5 {[%emt 0:00:09]} Bd7 {[%emt 0:00:18]} 10. Nxd7 {[%emt 0:00:13]} Qxd7 {[%emt 0:00:11]} 11. Nc3 {[%emt 0:00:13]} e6 {[%emt 0:00:22]} 12. O-O {[%emt 0:00:16]} a6 {[%emt 0:00:22]} 13. Bxc6 {[%emt 0:04:58]} Qxc6 {[%emt 0:00:15]} 14. d5 {[%emt 0:02:16]} Nxd5 {[%emt 0:07:46]} 15. Nxd5 {[%emt 0:00:10]} Rd8 {[%emt 0:00:42]} 16. Be3 {[%emt 0:12:41]} Rxd5 {[%emt 0:06:01]} 17. Qg4 {[%emt 0:01:20]} h5 {[%emt 0:02:12]} 18. Qf3 {[%emt 0:07:22]} h4 {[%emt 0:18:18]} 19. Rac1 {[%emt 0:01:59]} Qd7 {[%emt 0:00:50]} 20. Bf4 {[%emt 0:13:20]} Bc5 {[%emt 0:12:36]} 21. Rfd1 {[%emt 0:19:20]} Rhh5 {[%emt 0:01:26]} 22. Qg4 {[%emt 0:09:59]} Rxd1+ {[%emt 0:09:37]} 23. Rxd1 {[%emt 0:00:11]} Rd5 {[%emt 0:00:07]} 24. Re1 {[%emt 0:03:21]} Bb4 {[%emt 0:05:42]} 25. Rf1 {[%emt 0:01:49]} e5 {[%emt 0:06:52]} 26. Qe2 {[%emt 0:00:08]} Qb5 {[%emt 0:01:33]} 27. Qxb5+ {[%emt 0:02:58]} axb5 {[%emt 0:02:38]} 28. Be3 {[%emt 0:02:01]} Bc5 {[%emt 0:02:50]} 29. Rc1 {[%emt 0:04:45]} Bxe3 {[%emt 0:00:52]} 30. fxe3 {[%emt 0:00:02]} Kd7 {[%emt 0:00:26]} 31. Rc2 {[%emt 0:00:44]} f5 {[%emt 0:02:42]} 32. Kf2 {[%emt 0:00:46]} e4 {[%emt 0:01:14]} 33. Ke2 {[%emt 0:01:27]} g5 {[%emt 0:01:05]} 34. g3 {[%emt 0:01:48]} hxg3 {[%emt 0:03:35]} 35. hxg3 {[%emt 0:00:01]} b6 {[%emt 0:00:06]} 36. Rc1 {[%emt 0:04:30]} Rc5 {[%emt 0:01:05]} 37. Rd1+ {[%emt 0:00:24]} Ke6 {[%emt 0:00:37]} 38. Rd2 {[%emt 0:00:37]} Ke5 {[%emt 0:01:07]} 39. Kf2 {[%emt 0:01:37]} f4 {[%emt 0:01:29]} 40. g4 {[%emt 0:03:00]} Rc1 {[%emt 0:01:17]} 41. Re2 {[%emt 0:00:35]} Rh1 {[%emt 0:00:27]} 0-1

[Event "EYCC O18-ch 2024"]
[Site "Prague"]
[Date "2024.08.22"]
[Round "1.12"]
[White "Michaeli, Omri"]
[Black "Soderstrom, Adrian"]
[Result "0-1"]
[ECO "C47"]
[WhiteElo "1983"]
[BlackElo "2318"]
[Annotator "ChessBase"]
[PlyCount "52"]
[EventDate "2024.08.19"]
[EventType "swiss"]
[EventCountry "CZE"]
[SourceTitle "playchess.com"]
[Source "ChessBase"]
[SourceQuality "1"]
[TimeControl "5400+30"]

1. e4 {[%emt 0:00:03]} e5 {[%emt 0:00:22]} 2. Nf3 {[%emt 0:00:20]} Nc6 {[%emt 0:00:07]} 3. Nc3 {[%emt 0:00:09]} Nf6 {[%emt 0:00:11]} 4. a3 {[%emt 0:00:08]} d5 {[%emt 0:01:52]} 5. Bb5 {[%emt 0:00:15]} Nxe4 {[%emt 0:13:19]} 6. Nxe5 {[%emt 0:01:12]} Qf6 {[%emt 0:03:08]} 7. Nf3 {[%emt 0:00:17]} Be6 {[%emt 0:09:28]} 8. Qe2 {[%emt 0:03:37]} Bd6 {[%emt 0:06:38]} 9. Nxe4 {[%emt 0:05:30]} dxe4 {[%emt 0:00:04]} 10. Qxe4 {[%emt 0:00:35]} O-O {[%emt 0:01:08]} 11. O-O {[%emt 0:10:43]} Bf5 {[%emt 0:05:22]} 12. Qa4 {[%emt 0:08:23]} Ne5 {[%emt 0:12:38]} 13. Be2 {[%emt 0:04:16]} Rfe8 {[%emt 0:10:40]} 14. Bd1 {[%emt 0:05:40]} Bd7 {[%emt 0:06:47]} 15. Qb3 {[%emt 0:04:04]} c5 {[%emt 0:06:00]} 16. Nxe5 {[%emt 0:07:31]} Qxe5 {[%emt 0:00:23]} 17. Qg3 {[%emt 0:00:51]} Qf6 {[%emt 0:01:47]} 18. Qf3 {[%emt 0:03:18]} Qe5 {[%emt 0:01:52]} 19. Qg3 {[%emt 0:01:48]} Qe7 {[%emt 0:02:44]} 20. f4 {[%emt 0:02:49]} c4 {[%emt 0:01:41]} 21. d4 {[%emt 0:02:16]} cxd3 {[%emt 0:00:31]} 22. Qxd3 {[%emt 0:03:14]} Rad8 {[%emt 0:01:36]} 23. Qg3 {[%emt 0:04:39]} Bb5 {[%emt 0:01:24]} 24. c4 {[%emt 0:02:36]} Bxc4 {[%emt 0:00:30]} 25. Bd2 {[%emt 0:00:05]} Bc5+ {[%emt 0:00:10]} 26. Kh1 {[%emt 0:00:07]} Rxd2 {[%emt 0:00:28]} 0-1

[Event "EYCC O18-ch 2024"]
[Site "Prague"]
[Date "2024.08.22"]
[Round "1.13"]
[White "Pidluznij, Gleb"]
[Black "Grgantov, Marin"]
[Result "1-0"]
[ECO "E04"]
[WhiteElo "2414"]
[BlackElo "2110"]
[Annotator "RC"]
[PlyCount "115"]
[EventDate "2024.08.19"]
[EventType "swiss"]
[EventCountry "CZE"]
[SourceTitle "playchess.com"]
[Source "ChessBase"]
[SourceQuality "1"]
[TimeControl "5400+30"]

1. d4 {[%emt 0:00:04]} Nf6 {[%emt 0:00:09]} 2. c4 {[%emt 0:00:09]} e6 {[%emt 0:00:06]} 3. g3 {[%emt 0:00:08]} d5 {[%emt 0:00:06]} 4. Bg2 {[%emt 0:00:29]} dxc4 {[%emt 0:00:47]} 5. Nf3 {[%emt 0:00:24]} Nc6 {[%emt 0:00:09]} 6. Qa4 {[%emt 0:01:05]} Nd7 {[%emt 0:05:51]} 7. Qxc4 {[%emt 0:00:54]} Nb6 {[%emt 0:00:07]} 8. Qd3 {[%emt 0:01:17]} e5 {[%emt 0:00:15]} 9. Nxe5 {[%emt 0:04:24]} Nb4 {[%emt 0:00:51]} 10. Qd1 {[%emt 0:02:15]} Qxd4 {[%emt 0:00:18]} 11. Qxd4 {[%emt 0:01:00]} Nc2+ {[%emt 0:00:08]} 12. Kd1 {[%emt 0:01:15]} Nxd4 {[%emt 0:00:07]} 13. Be3 {[%emt 0:07:55]} Ne6 {[%emt 0:12:16]} 14. Bxb6 {[%emt 0:02:10]} axb6 {[%emt 0:00:35]} 15. Nc3 {[%emt 0:02:48]} f6 {[%emt 0:13:20]} 16. Nc4 {[%emt 0:03:30]} Kf7 {[%emt 0:06:43]} 17. e3 {[%emt 0:01:33]} Bb4 {[%emt 0:13:50]} 18. Nd5 {[%emt 0:06:21]} Rd8 {[%emt 0:02:03]} 19. Ke2 {[%emt 0:02:12]} Bf8 {[%emt 0:03:31]} 20. Nc3 {[%emt 0:18:23]} Nc5 {[%emt 0:06:29]} 21. Bd5+ {[%emt 0:02:12]} Be6 {[%emt 0:02:07]} 22. Rhd1 {[%emt 0:01:47]} Bxd5 {[%emt 0:04:44]} 23. Rxd5 {[%emt 0:01:04]} Rxd5 {[%emt 0:02:09]} 24. Nxd5 {[%emt 0:00:02]} Ne6 {[%emt 0:00:29]} 25. Nc3 {[%emt 0:10:47]} Bb4 {[%emt 0:02:58]} 26. Nb5 {[%emt 0:01:29]} Ke7 {[%emt 0:08:46]} 27. a3 {[%emt 0:02:41]} c6 {[%emt 0:04:37]} 28. Rd1 {[%emt 0:02:07]} Bc5 {[%emt 0:01:46]} 29. Nd4 {[%emt 0:02:22]} Bxd4 {[%emt 0:01:34]} 30. exd4 {[%emt 0:00:02]} Rd8 {[%emt 0:00:33]} 31. Ne3 {[%emt 0:01:29]} g6 {[%emt 0:00:37]} 32. d5 {[%emt 0:00:05]} Nc7 {[%emt 0:00:37]} 33. dxc6 {[%emt 0:01:16]} Rxd1 {[%emt 0:00:09]} 34. Kxd1 {[%emt 0:00:11]} bxc6 {[%emt 0:00:04]} 35. Kd2 {[%emt 0:01:05]} Ke6 {[%emt 0:01:31]} 36. Kc3 {[%emt 0:04:25]} Na6 {[%emt 0:02:22]} 37. f3 {[%emt 0:06:47]} h5 {[%emt 0:00:40]} 38. a4 {[%emt 0:00:33]} Kd6 {[%emt 0:02:17]} 39. Nc4+ {[%emt 0:02:33]} Kc7 {[%emt 0:00:15]} 40. Nd2 {[%emt 0:00:26]} Nc5 {[%emt 0:01:31]} 41. b3 {[%emt 0:00:22]} Nd7 {[%emt 0:01:08]} 42. Ne4 {[%emt 0:03:34]} c5 {[%emt 0:00:33]} 43. f4 {[%emt 0:02:28]} Kc6 {[%emt 0:00:00]} 44. Kc4 {[%emt 0:00:08]} f5 {[%emt 0:02:07]} 45. Ng5 {[%emt 0:01:07]} Nf6 {[%emt 0:00:45]} 46. Nf3 {[%emt 0:01:07]} Ng4 {[%emt 0:00:37]} 47. Nh4 {[%emt 0:01:03]} Nxh2 {[%emt 0:00:22]} 48. Nxg6 {[%emt 0:00:06]} Kd6 {[%emt 0:00:32]} 49. Nh4 {[%emt 0:01:27]} Nf1 {[%emt 0:00:50]} 50. Nxf5+ {[%emt 0:00:05]} Kc6 {[%emt 0:00:04]} 51. Kd3 {[%emt 0:00:18]} b5 {[%emt 0:00:19]} 52. axb5+ {[%emt 0:00:21]} Kxb5 {[%emt 0:00:01]} 53. Ke2 {[%emt 0:00:20]} Nh2 {[%emt 0:00:14]} 54. Ne3 {[%emt 0:00:35]} Kb4 {[%emt 0:01:45]} 55. f5 c4 {[%emt 0:00:11]} 56. bxc4 {[%emt 0:00:37]} Kc5 57. f6 {[%emt 0:00:11]} Kd6 {[%emt 0:00:08]} 58. c5+ {[%emt 0:00:04]} 1-0

[Event "EYCC O18-ch 2024"]
[Site "Prague"]
[Date "2024.08.22"]
[Round "1.13"]
[White "Garcia Fernandez, Victor"]
[Black "Goncalves, Lucas Jordao"]
[Result "1-0"]
[ECO "D35"]
[WhiteElo "2313"]
[BlackElo "1981"]
[Annotator "RC"]
[PlyCount "85"]
[EventDate "2024.08.19"]
[EventType "swiss"]
[EventCountry "CZE"]
[SourceTitle "playchess.com"]
[Source "ChessBase"]
[SourceQuality "1"]
[TimeControl "5400+30"]

1. d4 {[%emt 0:00:07]} d5 {[%emt 0:00:16]} 2. c4 {[%emt 0:00:11]} e6 {[%emt 0:00:06]} 3. Nc3 {[%emt 0:00:13]} Nf6 {[%emt 0:00:27]} 4. cxd5 {[%emt 0:00:21]} exd5 {[%emt 0:00:10]} 5. Bg5 {[%emt 0:00:18]} Be7 {[%emt 0:00:30]} 6. e3 {[%emt 0:00:18]} O-O {[%emt 0:00:23]} 7. Bd3 {[%emt 0:00:11]} h6 {[%emt 0:00:32]} 8. Bh4 {[%emt 0:05:51]} b6 {[%emt 0:01:35]} 9. Nf3 {[%emt 0:14:22]} Bb7 {[%emt 0:00:47]} 10. O-O {[%emt 0:00:43]} Nbd7 {[%emt 0:03:55]} 11. Rc1 {[%emt 0:05:29]} Ne4 {[%emt 0:27:43]} 12. Bxe7 {[%emt 0:02:21]} Qxe7 {[%emt 0:01:00]} 13. Ne2 {[%emt 0:02:21]} c5 {[%emt 0:02:28]} 14. Nf4 {[%emt 0:07:06]} c4 {[%emt 0:05:42]} 15. Bxe4 {[%emt 0:14:32]} Qxe4 {[%emt 0:01:48]} 16. Qa4 {[%emt 0:00:42]} Nf6 {[%emt 0:16:00]} 17. b3 {[%emt 0:00:25]} cxb3 {[%emt 0:09:45]} 18. axb3 {[%emt 0:08:00]} Qe7 {[%emt 0:01:49]} 19. Rc2 {[%emt 0:03:11]} a6 {[%emt 0:02:58]} 20. Rfc1 {[%emt 0:01:39]} Rfc8 {[%emt 0:00:57]} 21. Ne5 {[%emt 0:02:39]} Rxc2 {[%emt 0:02:42]} 22. Rxc2 {[%emt 0:00:02]} Rc8 {[%emt 0:00:06]} 23. Rxc8+ {[%emt 0:01:24]} Bxc8 {[%emt 0:00:04]} 24. Qc6 {[%emt 0:00:10]} Qb7 {[%emt 0:00:53]} 25. Qd6 {[%emt 0:00:22]} a5 {[%emt 0:01:02]} 26. Qd8+ {[%emt 0:01:11]} Kh7 {[%emt 0:00:05]} 27. Nxf7 {[%emt 0:00:32]} Qxf7 {[%emt 0:00:06]} 28. Qxc8 {[%emt 0:00:05]} Qe7 {[%emt 0:03:58]} 29. Qf5+ {[%emt 0:01:13]} Kg8 {[%emt 0:00:10]} 30. Nxd5 {[%emt 0:00:53]} Nxd5 {[%emt 0:00:13]} 31. Qxd5+ {[%emt 0:00:05]} Kh8 {[%emt 0:00:03]} 32. h3 {[%emt 0:00:55]} Qb4 {[%emt 0:00:08]} 33. Kh2 {[%emt 0:01:15]} b5 {[%emt 0:00:04]} 34. Qe6 {[%emt 0:03:00]} a4 {[%emt 0:01:14]} 35. bxa4 {[%emt 0:00:03]} bxa4 {[%emt 0:00:07]} 36. d5 {[%emt 0:00:17]} a3 {[%emt 0:02:07]} 37. d6 {[%emt 0:00:06]} a2 {[%emt 0:01:58]} 38. d7 {[%emt 0:00:21]} Qb8+ {[%emt 0:00:25]} 39. g3 {[%emt 0:00:05]} a1=Q {[%emt 0:02:39]} 40. Qe8+ {[%emt 0:00:07]} Qxe8 {[%emt 0:00:08]} 41. dxe8=Q+ {[%emt 0:00:06]} Kh7 {[%emt 0:00:19]} 42. Qe4+ {[%emt 0:00:06]} Kh8 {[%emt 0:00:10]} 43. Qf4 {[%emt 0:00:06]} 1-0

[Event "EYCC O18-ch 2024"]
[Site "Prague"]
[Date "2024.08.22"]
[Round "1.14"]
[White "Kovalskyi, Roman"]
[Black "Davtyan, Arsen"]
[Result "0-1"]
[ECO "C54"]
[WhiteElo "2108"]
[BlackElo "2402"]
[Annotator "RC"]
[PlyCount "42"]
[EventDate "2024.08.19"]
[EventType "swiss"]
[EventCountry "CZE"]
[SourceTitle "playchess.com"]
[Source "ChessBase"]
[SourceQuality "1"]
[TimeControl "5400+30"]

1. e4 {[%emt 0:00:07]} e5 {[%emt 0:00:02]} 2. Nf3 {[%emt 0:00:10]} Nc6 {[%emt 0:00:06]} 3. Bc4 {[%emt 0:00:06]} Bc5 {[%emt 0:00:05]} 4. c3 {[%emt 0:00:06]} Nf6 {[%emt 0:00:04]} 5. d3 {[%emt 0:00:05]} d6 {[%emt 0:00:05]} 6. O-O {[%emt 0:00:06]} a5 {[%emt 0:00:08]} 7. a4 {[%emt 0:00:07]} O-O {[%emt 0:00:30]} 8. Nbd2 {[%emt 0:01:21]} Ba7 {[%emt 0:00:23]} 9. Re1 {[%emt 0:00:30]} Ng4 {[%emt 0:01:33]} 10. Re2 {[%emt 0:02:03]} Kh8 {[%emt 0:00:39]} 11. h3 {[%emt 0:14:21]} f5 12. exf5 {[%emt 0:00:07]} Nh6 {[%emt 0:13:54]} 13. g4 {[%emt 0:00:12]} d5 {[%emt 0:20:06]} 14. Bb3 {[%emt 0:11:54]} Nxf5 {[%emt 0:08:03]} 15. Kg2 {[%emt 0:47:55]} Nh4+ {[%emt 0:08:50]} 16. Nxh4 {[%emt 0:08:48]} Qxh4 {[%emt 0:00:02]} 17. Bxd5 {[%emt 0:00:09]} Bxg4 {[%emt 0:02:19]} 18. hxg4 {[%emt 0:00:19]} Qxg4+ {[%emt 0:00:02]} 19. Kf1 {[%emt 0:00:07]} Rxf2+ {[%emt 0:00:33]} 20. Ke1 {[%emt 0:02:42]} Qg1+ {[%emt 0:00:15]} 21. Nf1 {[%emt 0:00:06]} Rxf1+ {[%emt 0:00:06]} 0-1

[Event "EYCC O18-ch 2024"]
[Site "Prague"]
[Date "2024.08.22"]
[Round "1.14"]
[White "Zajakins, Artjoms"]
[Black "Serrano Almendros, Angel"]
[Result "1/2-1/2"]
[ECO "D35"]
[WhiteElo "1981"]
[BlackElo "2310"]
[Annotator "RC"]
[PlyCount "67"]
[EventDate "2024.08.19"]
[EventType "swiss"]
[EventCountry "CZE"]
[SourceTitle "playchess.com"]
[Source "ChessBase"]
[SourceQuality "1"]
[TimeControl "5400+30"]

1. d4 {[%emt 0:00:03]} d5 {[%emt 0:00:04]} 2. c4 {[%emt 0:00:09]} e6 {[%emt 0:00:02]} 3. Nc3 {[%emt 0:00:13]} Nf6 {[%emt 0:00:05]} 4. cxd5 {[%emt 0:00:21]} exd5 {[%emt 0:00:04]} 5. Bg5 {[%emt 0:00:09]} c6 {[%emt 0:00:11]} 6. e3 {[%emt 0:00:11]} Be6 {[%emt 0:01:08]} 7. Qb3 {[%emt 0:00:18]} b6 {[%emt 0:03:27]} 8. Nf3 {[%emt 0:04:24]} Be7 {[%emt 0:03:36]} 9. Be2 {[%emt 0:01:30]} O-O {[%emt 0:02:03]} 10. h3 {[%emt 0:05:58]} Ne4 {[%emt 0:07:13]} 11. Bf4 {[%emt 0:03:21]} b5 {[%emt 0:15:39]} 12. O-O {[%emt 0:07:34]} Nd7 {[%emt 0:00:45]} 13. Qc2 {[%emt 0:05:48]} Nxc3 {[%emt 0:06:00]} 14. Qxc3 {[%emt 0:01:45]} Rc8 {[%emt 0:00:13]} 15. Rfc1 {[%emt 0:08:19]} Bf5 {[%emt 0:01:10]} 16. Bd3 {[%emt 0:04:34]} Be4 {[%emt 0:05:04]} 17. Bxe4 {[%emt 0:05:27]} dxe4 {[%emt 0:00:04]} 18. Ne5 {[%emt 0:00:13]} Nxe5 {[%emt 0:01:45]} 19. Bxe5 {[%emt 0:00:21]} Qd7 {[%emt 0:01:16]} 20. Qb3 {[%emt 0:02:30]} Rfd8 {[%emt 0:02:15]} 21. Rc2 {[%emt 0:04:41]} a5 {[%emt 0:15:54]} 22. a4 {[%emt 0:04:37]} Bb4 {[%emt 0:00:14]} 23. Rac1 {[%emt 0:02:12]} h6 {[%emt 0:01:03]} 24. axb5 {[%emt 0:02:24]} cxb5 {[%emt 0:00:04]} 25. Rxc8 {[%emt 0:00:10]} Rxc8 {[%emt 0:00:02]} 26. Rxc8+ {[%emt 0:00:15]} Qxc8 {[%emt 0:00:02]} 27. Qd5 {[%emt 0:03:20]} Qc1+ {[%emt 0:01:39]} 28. Kh2 {[%emt 0:00:12]} Qxb2 {[%emt 0:00:08]} 29. Qa8+ {[%emt 0:01:19]} Kh7 {[%emt 0:04:06]} 30. Qxe4+ {[%emt 0:00:13]} Kg8 {[%emt 0:00:07]} 31. Qa8+ {[%emt 0:02:51]} Kh7 {[%emt 0:00:04]} 32. Qe4+ {[%emt 0:00:22]} Kg8 {[%emt 0:00:01]} 33. Qa8+ {[%emt 0:00:52]} Kh7 {[%emt 0:00:02]} 34. Qe4+ {[%emt 0:00:26]} 1/2-1/2

[Event "EYCC O18-ch 2024"]
[Site "Prague"]
[Date "2024.08.22"]
[Round "1.15"]
[White "Pasztor, Balazs"]
[Black "Rak, Martin"]
[Result "1-0"]
[ECO "C70"]
[WhiteElo "2402"]
[BlackElo "2104"]
[Annotator "RC"]
[PlyCount "79"]
[EventDate "2024.08.19"]
[EventType "swiss"]
[EventCountry "CZE"]
[SourceTitle "playchess.com"]
[Source "ChessBase"]
[SourceQuality "1"]
[TimeControl "5400+30"]

1. e4 {[%emt 0:00:04]} e5 {[%emt 0:00:07]} 2. Nf3 {[%emt 0:00:05]} Nc6 {[%emt 0:00:05]} 3. Bb5 {[%emt 0:00:09]} a6 {[%emt 0:00:13]} 4. Ba4 {[%emt 0:00:06]} Bc5 {[%emt 0:00:17]} 5. c3 {[%emt 0:00:32]} Nge7 {[%emt 0:00:14]} 6. d4 {[%emt 0:02:01]} exd4 {[%emt 0:00:12]} 7. cxd4 {[%emt 0:00:06]} Bb4+ {[%emt 0:00:09]} 8. Bd2 {[%emt 0:00:39]} Bxd2+ {[%emt 0:00:20]} 9. Qxd2 {[%emt 0:00:32]} d5 {[%emt 0:00:50]} 10. exd5 {[%emt 0:00:53]} Nxd5 {[%emt 0:03:06]} 11. Bxc6+ {[%emt 0:01:08]} bxc6 {[%emt 0:00:11]} 12. O-O {[%emt 0:00:06]} O-O {[%emt 0:00:45]} 13. Ne5 {[%emt 0:01:09]} Ne7 {[%emt 0:10:47]} 14. Nc3 {[%emt 0:19:41]} Be6 {[%emt 0:08:15]} 15. Rad1 {[%emt 0:03:36]} f6 {[%emt 0:08:32]} 16. Nd3 {[%emt 0:05:48]} Bg4 {[%emt 0:14:44]} 17. Rde1 {[%emt 0:01:21]} Qd6 {[%emt 0:05:15]} 18. Nc5 {[%emt 0:03:38]} Ng6 {[%emt 0:03:56]} 19. Qd3 {[%emt 0:04:06]} a5 {[%emt 0:06:33]} 20. h3 {[%emt 0:02:58]} Bc8 {[%emt 0:02:07]} 21. Re3 {[%emt 0:03:10]} Rb8 {[%emt 0:01:41]} 22. N5e4 {[%emt 0:06:50]} Qd7 {[%emt 0:04:22]} 23. b3 {[%emt 0:01:49]} Rb4 {[%emt 0:03:02]} 24. Rd1 {[%emt 0:04:09]} Rd8 {[%emt 0:02:51]} 25. Nc5 {[%emt 0:02:04]} Qf7 {[%emt 0:09:53]} 26. Qe4 {[%emt 0:02:46]} f5 {[%emt 0:02:41]} 27. Qxc6 {[%emt 0:03:23]} f4 {[%emt 0:01:48]} 28. Ree1 {[%emt 0:01:34]} f3 {[%emt 0:04:41]} 29. Nd5 {[%emt 0:06:35]} Rxd5 {[%emt 0:02:40]} 30. Re8+ {[%emt 0:00:14]} Nf8 {[%emt 0:00:12]} 31. Rxc8 {[%emt 0:00:11]} Rd6 {[%emt 0:03:36]} 32. Qa8 {[%emt 0:02:06]} fxg2 {[%emt 0:01:08]} 33. d5 {[%emt 0:04:04]} Rf4 {[%emt 0:00:35]} 34. Ne6 {[%emt 0:00:56]} Rxe6 {[%emt 0:00:35]} 35. dxe6 {[%emt 0:00:11]} Qxe6 {[%emt 0:01:00]} 36. Qd5 {[%emt 0:00:29]} Qxd5 {[%emt 0:00:21]} 37. Rxd5 {[%emt 0:00:06]} a4 {[%emt 0:00:10]} 38. bxa4 {[%emt 0:00:08]} Rxa4 {[%emt 0:00:13]} 39. Rdd8 {[%emt 0:00:06]} Rf4 {[%emt 0:00:15]} 40. Rxc7 {[%emt 0:00:08]} 1-0

[Event "EYCC O18-ch 2024"]
[Site "Prague"]
[Date "2024.08.22"]
[Round "1.15"]
[White "Ribera Veganzones, Serni"]
[Black "Janik, Marek Tobias"]
[Result "1-0"]
[ECO "C42"]
[WhiteElo "2309"]
[BlackElo "1978"]
[Annotator "RC"]
[PlyCount "80"]
[EventDate "2024.08.19"]
[EventType "swiss"]
[EventCountry "CZE"]
[SourceTitle "playchess.com"]
[Source "ChessBase"]
[SourceQuality "1"]
[TimeControl "5400+30"]

1. e4 {[%emt 0:00:02]} e5 {[%emt 0:00:06]} 2. Nf3 {[%emt 0:00:07]} Nf6 {[%emt 0:00:04]} 3. Nxe5 {[%emt 0:00:08]} d6 {[%emt 0:00:06]} 4. Nf3 {[%emt 0:00:08]} Nxe4 {[%emt 0:00:13]} 5. Nc3 {[%emt 0:00:11]} Nxc3 {[%emt 0:00:07]} 6. dxc3 {[%emt 0:00:07]} Be7 {[%emt 0:00:09]} 7. Be3 {[%emt 0:00:09]} O-O {[%emt 0:00:13]} 8. Qd2 {[%emt 0:00:11]} Nd7 {[%emt 0:00:08]} 9. O-O-O {[%emt 0:00:13]} Nf6 {[%emt 0:00:07]} 10. Bd3 {[%emt 0:00:13]} c5 {[%emt 0:00:20]} 11. Rhe1 {[%emt 0:00:31]} Be6 {[%emt 0:00:23]} 12. Bg5 {[%emt 0:00:54]} Qa5 {[%emt 0:13:13]} 13. Qf4 {[%emt 0:18:53]} Qxa2 {[%emt 0:21:43]} 14. Qh4 {[%emt 0:00:26]} h6 {[%emt 0:00:42]} 15. Bxh6 {[%emt 0:00:41]} Rfe8 {[%emt 0:07:02]} 16. Bxg7 {[%emt 0:21:51]} Kxg7 {[%emt 0:02:40]} 17. Qg5+ {[%emt 0:08:41]} Kf8 {[%emt 0:02:56]} 18. Qh6+ {[%emt 0:05:45]} Kg8 {[%emt 0:00:04]} 19. Rxe6 {[%emt 0:01:34]} Qxe6 {[%emt 0:08:21]} 20. Re1 {[%emt 0:10:37]} Ne4 {[%emt 0:14:54]} 21. Qxe6 {[%emt 0:02:50]} fxe6 {[%emt 0:00:06]} 22. Bxe4 {[%emt 0:00:06]} Bf6 {[%emt 0:02:58]} 23. Bxb7 {[%emt 0:00:33]} Rab8 {[%emt 0:00:08]} 24. Bc6 {[%emt 0:02:07]} Re7 {[%emt 0:00:13]} 25. Re3 {[%emt 0:01:31]} Kf7 {[%emt 0:00:49]} 26. b3 {[%emt 0:01:12]} d5 {[%emt 0:04:12]} 27. g4 {[%emt 0:04:10]} Rc7 {[%emt 0:09:37]} 28. Ba4 {[%emt 0:00:01]} Rh8 {[%emt 0:00:56]} 29. g5 {[%emt 0:00:26]} Bg7 {[%emt 0:00:06]} 30. h4 {[%emt 0:00:52]} Ke7 {[%emt 0:02:06]} 31. Kd2 {[%emt 0:00:51]} Kd6 {[%emt 0:00:18]} 32. Ke2 {[%emt 0:10:09]} e5 {[%emt 0:01:53]} 33. c4 {[%emt 0:00:34]} d4 {[%emt 0:06:01]} 34. Re4 {[%emt 0:00:07]} Rf7 {[%emt 0:01:30]} 35. g6 {[%emt 0:00:39]} Rf5 {[%emt 0:00:48]} 36. Ng5 {[%emt 0:00:28]} Rg8 {[%emt 0:01:22]} 37. Rg4 {[%emt 0:02:00]} Rf4 {[%emt 0:01:32]} 38. Rxf4 {[%emt 0:00:47]} exf4 {[%emt 0:00:06]} 39. h5 {[%emt 0:01:09]} Ke5 {[%emt 0:00:22]} 40. Kf3 {[%emt 0:02:38]} Rf8 {[%emt 0:00:56]} 1-0

[Event "EYCC O18-ch 2024"]
[Site "Prague"]
[Date "2024.08.22"]
[Round "1.16"]
[White "Almeida, Joao Pedro Dias"]
[Black "Talibov, Shiroghlan"]
[Result "0-1"]
[ECO "B41"]
[WhiteElo "2086"]
[BlackElo "2395"]
[Annotator "RC"]
[PlyCount "60"]
[EventDate "2024.08.19"]
[EventType "swiss"]
[EventCountry "CZE"]
[SourceTitle "playchess.com"]
[Source "ChessBase"]
[SourceQuality "1"]
[TimeControl "5400+30"]

1. e4 {[%emt 0:00:03]} c5 {[%emt 0:00:04]} 2. Nf3 {[%emt 0:00:15]} e6 {[%emt 0:01:21]} 3. d4 {[%emt 0:00:10]} cxd4 {[%emt 0:00:05]} 4. Nxd4 {[%emt 0:00:09]} a6 {[%emt 0:00:24]} 5. c4 {[%emt 0:00:26]} Nf6 {[%emt 0:00:07]} 6. Nc3 {[%emt 0:00:12]} Qc7 {[%emt 0:00:04]} 7. a3 {[%emt 0:00:20]} b6 {[%emt 0:00:13]} 8. Be3 {[%emt 0:00:39]} Bb7 {[%emt 0:00:08]} 9. f3 {[%emt 0:00:08]} Be7 {[%emt 0:00:45]} 10. Be2 {[%emt 0:02:01]} d6 {[%emt 0:00:34]} 11. O-O {[%emt 0:01:39]} Nbd7 {[%emt 0:00:04]} 12. Qd2 {[%emt 0:00:13]} O-O {[%emt 0:00:21]} 13. Rfc1 {[%emt 0:00:53]} Rac8 {[%emt 0:00:18]} 14. a4 {[%emt 0:03:33]} Qb8 {[%emt 0:01:43]} 15. Qe1 {[%emt 0:16:07]} Rfe8 {[%emt 0:00:45]} 16. g4 {[%emt 0:06:43]} h6 {[%emt 0:26:16]} 17. h4 {[%emt 0:08:16]} d5 {[%emt 0:07:51]} 18. g5 {[%emt 0:05:25]} hxg5 {[%emt 0:02:05]} 19. hxg5 {[%emt 0:00:09]} Nh7 {[%emt 0:00:24]} 20. g6 {[%emt 0:12:58]} fxg6 {[%emt 0:00:13]} 21. cxd5 {[%emt 0:01:40]} exd5 {[%emt 0:00:19]} 22. Nxd5 {[%emt 0:01:07]} Bxd5 {[%emt 0:05:30]} 23. exd5 {[%emt 0:00:02]} Bc5 {[%emt 0:03:22]} 24. Bxa6 {[%emt 0:14:56]} Rxe3 {[%emt 0:09:42]} 25. Qxe3 {[%emt 0:01:13]} Re8 {[%emt 0:00:04]} 26. Qf2 {[%emt 0:05:04]} Bxd4 {[%emt 0:00:06]} 27. Qxd4 {[%emt 0:00:08]} Qg3+ {[%emt 0:00:03]} 28. Kh1 {[%emt 0:03:03]} Re5 {[%emt 0:00:31]} 29. Rc8+ {[%emt 0:02:14]} Kf7 {[%emt 0:00:02]} 30. Qxe5 {[%emt 0:01:44]} Nxe5 {[%emt 0:00:12]} 0-1